[Event "Champions Showdown Kings 2025"]
[Site "Saint Louis"]
[Date "2025.03.04"]
[Round "1.1"]
[White "Caruana, Fabiano"]
[Black "Nakamura, Hikaru"]
[Result "1/2-1/2"]
[Annotator "TA"]
[ECO "C60"]
[WhiteElo "2803"]
[BlackElo "2802"]
[PlyCount "134"]
[EventDate "2025.03.02"]
[EventType "swiss"]
[EventCountry "USA"]
[SourceTitle "playchess.com"]
[Source "ChessBase"]
[SourceQuality "1"]
[TimeControl "180+2"]

{[%evp 9,134,16,27,20,83,54,60,47,43,46,39,28,35,36,33,35,46,33,45,41,39,50,47,31,23,35,37,36,49,28,55,35,38,-100,-111,-97,-127,-119,-135,-133,-136,-270,-231,-283,-269,-283,-288,-292,-279,-302,-313,-295,-175,-232,-235,-222,-213,-237,-241,-257,-114,-216,-116,-123,-116,-114,-20,-154,-56,-35,0,-12,-23,-94,-8,-155,-161,-178,-181,-181,-185,-181,-186,-193,-191,-186,-184,-192,-191,-189,-176,-176,-204,-204,-192,-194,-204,-213,-181,-187,-202,-194,-181,-181,-181,-163,0,-167,-154,-167,-129,-154,0,0,0,0,0,0,0,0,0,0,0,0,0,0,0]} 1. e4 {[%emt 0:00:01]} e5 {[%emt 0:00:01]} 2. Nf3 {[%emt 0:00:01]} Nc6 {[%emt 0:00:01]} 3. Bb5 {[%emt 0:00:02]} Nge7 {[%emt 0:00:01]} 4. O-O {[%emt 0:00:13]} Ng6 {[%emt 0:00:09]} 5. d4 {[%emt 0:00:04]} exd4 {[%emt 0:00:01]} 6. Nxd4 {[%emt 0:00:01] C60: Ruy Lopez: Unusual Black 3rd moves and 3...g6.} Nxd4 {[%emt 0:00:02]} (6... Bc5 $11 7. Nb3 Bb6) 7. Qxd4 $16 {[%emt 0:00:02]} c6 {[%emt 0:00:01]} 8. Be2 {[%emt 0:00:02] White is slightly better.} Qb6 {[%emt 0:00:39][%csl Oc8] Black has a bad bishop} 9. Qc3 {[%emt 0:00:02]} Qb4 {[%emt 0:00:08]} 10. Qd3 {[%emt 0:00:21]} Qd6 {[%emt 0:00:05]} 11. Qb3 $146 {[%emt 0:00:26]} ({Predecessor:} 11. f4 Qxd3 12. cxd3 Bc5+ 13. Kh1 f5 14. Nd2 O-O 15. Nb3 Bb6 16. exf5 Rxf5 17. g4 {½-½ Laurent Paoli,P (2537)-Romanov,E (2593) Rochefort op 22nd 2024 (5)}) 11... Be7 {[%emt 0:00:20]} 12. Be3 {[%emt 0:00:04]} Nf4 {[%emt 0:00:04][%cal Bg6f4,Bf4e6,Be6c5][%mdl 32]} 13. Bf3 {[%emt 0:00:11]} Qf6 {[%emt 0:00:13]} 14. Nd2 {[%emt 0:00:07]} O-O {[%emt 0:00:06]} 15. g3 {[%emt 0:00:12]} Ne6 {[%emt 0:00:07]} 16. Bg2 {[%emt 0:00:07]} Nc5 {[%emt 0:00:13]} 17. Qc4 {[%emt 0:00:18]} b6 {[%emt 0:00:00]} 18. Qd4 {[%emt 0:00:12]} Qg6 {[%emt 0:00:11]} 19. a4 {[%emt 0:00:15]} f5 {[%emt 0:00:05]} 20. exf5 {[%emt 0:00:14]} Qxf5 {[%emt 0:00:02]} 21. Rfe1 {[%emt 0:00:09]} (21. a5 $14 {keeps the upper hand.} Ba6 22. Rfc1) 21... Bf6 $1 $17 {[%emt 0:00:07]} 22. Qb4 {[%emt 0:00:01]} Qxc2 {[%emt 0:00:03]} 23. Qc4+ {[%emt 0:00:30]} Qxc4 {[%emt 0:00:02]} 24. Nxc4 {[%emt 0:00:01]} d5 {[%emt 0:00:05]} 25. Nd6 {[%emt 0:00:03]} (25. Bxc5 $17 bxc5 26. Ne5) 25... Bd7 {[%emt 0:00:10]} (25... Bxb2 26. Rab1 Bc3 (26... Nxa4 27. Rxb2 Nxb2 28. Bd4 $17) 27. Rec1 Nxa4 28. Nb5 $15) 26. Ra2 {[%emt 0:00:07]} Nd3 {[%emt 0:00:04][%csl LRb2,LRe1]} 27. Rd1 {[%emt 0:00:06]} Nb4 {[%emt 0:00:05]} 28. Ra3 {[%emt 0:00:01]} Nc2 {[%emt 0:00:01]} (28... Bxb2 29. Rb3 Be5 30. Nc4 dxc4 31. Rxb4 $11) 29. Rb3 {[%emt 0:00:02]} Nxe3 {[%emt 0:00:03]} 30. Rxe3 {[%emt 0:00:03]} Rad8 {[%emt 0:00:04]} (30... Bxb2 $142 31. h3 Bf6) 31. b4 {[%emt 0:00:02]} (31. Rd2) 31... Bg4 $19 {[%emt 0:00:01][%csl LRd1,LRd6]} 32. f3 {[%emt 0:00:01]} Bh5 {[%emt 0:00:16] This pair of bishops is nice.} 33. Nf5 {[%emt 0:00:01]} Rfe8 {[%emt 0:00:03] Repels Ne7+} 34. Rxe8+ {[%emt 0:00:02]} Rxe8 {[%emt 0:00:01]} (34... Bxe8 $19 {has better winning chances.} 35. f4 d4) 35. b5 {[%emt 0:00:01]} (35. g4 $17 {was necessary.} Bg6 36. f4) 35... Bg6 {[%emt 0:00:11]} (35... c5 $1 $19 {Threatens to win with ...Rd8.} 36. g4 Bg6 (36... Bf7 $2 37. f4 $19) 37. Rxd5 c4) 36. Nd6 $17 {[%emt 0:00:03][%cal Ob5c6]} Re6 {[%emt 0:00:01]} 37. Nc8 {[%emt 0:00:01]} d4 {[%emt 0:00:02]} (37... cxb5 $17 38. axb5 d4) 38. f4 {[%emt 0:00:02]} (38. Bh3 $1 $11 {keeps the balance.} Re3 (38... Re2 39. bxc6 Rc2 40. Nxa7 $11) 39. bxc6) 38... c5 {[%emt 0:00:09]} (38... Bh5 $1 $17 {[%cal Rh5d1]} 39. Rd2 cxb5) 39. Bd5 $1 $15 {[%emt 0:00:00] [#]} (39. Nxa7 $2 Kf8 40. Bd5 Re8 $19) 39... Bf7 {[%emt 0:00:01]} 40. Bxe6 {[%emt 0:00:01]} Bxe6 {[%emt 0:00:00]} 41. Nxa7 $11 {[%emt 0:00:02][%mdl 4096] Endgame KRN-KB} (41. Nd6 $1 $11 {was the only way to keep the balance.}) 41... c4 {[%emt 0:00:01]} ({Better is} 41... Bb3 $17 42. Rf1 d3) 42. a5 {[%emt 0:00:01]} d3 $1 $17 {[%emt 0:00:00]} 43. Nc6 {[%emt 0:00:02]} (43. axb6 $2 Bd4+ 44. Kg2 Bd5+ 45. Kh3 Bxb6 $19) 43... c3 $1 {[%emt 0:00:02] ( -> ...c2)} 44. axb6 {[%emt 0:00:06][%cal Ob6b7]} (44. Rxd3 $2 c2 45. axb6 c1=Q+ $19 (45... c1=B $2 46. b7 $18)) 44... c2 {[%emt 0:00:01]} 45. Rf1 {[%emt 0:00:02] aiming for b7.} (45. Rxd3 $2 c1=Q+ (45... c1=B $2 46. b7 $18) 46. Kf2 Qc2+ 47. Ke3 Bf5 $19 (47... Qxh2 $2 48. b7 $19)) 45... d2 $1 {[%emt 0:00:09]} 46. b7 {[%emt 0:00:01]} d1=Q {[%emt 0:00:07][%cal Od1f1]} 47. b8=Q+ {[%emt 0:00:01]} (47. b8=B Bc4 (47... c1=R $2 48. Rxd1 Rxd1+ 49. Kf2 $19) 48. h4 Qxf1+ (48... c1=R $2 49. Rxd1 Rxd1+ 50. Kg2 $19) 49. Kh2 Bd5 (49... c1=B 50. Nb4 Be3 51. h5 Qg1+ 52. Kh3 Be2 53. f5 Qh1#) (49... c1=Q 50. Ne7+ Bxe7 51. g4 Qh1+ 52. Kg3 Bxh4#)) 47... Kf7 {[%emt 0:00:00][%cal Od1f1]} 48. Qc7+ {[%emt 0:00:02] [#]} Kg6 $1 {[%emt 0:00:01][%cal Od1f1] ( -> ...Qxf1+!)} 49. Ne5+ {[%emt 0:00:03]} Bxe5 {[%emt 0:00:06]} 50. Qxe5 {[%emt 0:00:01] [#]} (50. fxe5 $2 {perishes.} Qd4+ 51. Rf2 Bc4 52. Qc6+ Kh5 53. Qf3+ Kh6 54. Qc6+ g6 $19) 50... Qxf1+ $3 {[%emt 0:00:03][%mdl 512]} 51. Kxf1 {[%emt 0:00:01]} c1=Q+ {[%emt 0:00:03]} ({Worse is} 51... c1=B 52. Qxe6+ Kh5 53. Qf5+ g5 54. Qxg5#) 52. Kf2 {[%emt 0:00:01]} Qd2+ {[%emt 0:00:01]} 53. Kg1 {[%emt 0:00:08]} Qd1+ {[%emt 0:00:05]} 54. Kf2 {[%emt 0:00:01]} Qc2+ {[%emt 0:00:02]} 55. Ke3 {[%emt 0:00:02]} Qb3+ {[%emt 0:00:03]} 56. Kd4 {[%emt 0:00:02]} Qb4+ {[%emt 0:00:02]} 57. Ke3 {[%emt 0:00:00]} Qb3+ {[%emt 0:00:02]} 58. Kd4 $1 {[%emt 0:00:01]} Qc4+ {[%emt 0:00:01]} 59. Ke3 {[%emt 0:00:01]} Bf5 {[%emt 0:00:08] Dodges Qe4} 60. g4 {[%emt 0:00:04] [#]} Qb3+ $2 {[%emt 0:00:01]} (60... Qd3+ $1 $17 61. Kf2 Bd7 (61... Bxg4 62. Qg5+ Kf7 63. Qxg4 $11) 62. f5+ Kf7) 61. Kf2 $11 {[%emt 0:00:01] The position is equal.} Bd3 {[%emt 0:00:04][%cal Oh7h6]} (61... Bxg4 $5 62. Qg5+ $8 Kf7 63. Qxg4 Qxb5 $17) 62. Qh5+ {[%emt 0:00:04]} Kf6 {[%emt 0:00:01]} 63. Qe5+ {[%emt 0:00:01]} Kf7 {[%emt 0:00:01][%cal Oh7h6]} 64. Qc7+ {[%emt 0:00:01]} Ke6 {[%emt 0:00:02]} 65. Qe5+ {[%emt 0:00:04]} Kf7 {[%emt 0:00:03][%cal Oh7h6]} 66. Qc7+ {[%emt 0:00:00]} Ke6 {[%emt 0:00:01]} 67. Qe5+ {[%emt 0:00:04]} Kf7 {[%emt 0:00:02] Whites escaped into a draw.   Weighted Error Value: White=0.24 (precise) /Black=0.25 (precise)   Mistake:       	White=7     	Black=8      Inaccurate:     	White=1     	Black=1      OK:         	White=14    	Black=21     Best:        	White=8     	Black=8      Strong:       	White=2     	Black=5      Brilliant:      	---       	Black=1} 1/2-1/2

[Event "Champions Showdown Kings 2025"]
[Site "Saint Louis"]
[Date "2025.03.05"]
[Round "1.1"]
[White "So, Wesley"]
[Black "Aronian, Levon"]
[Result "1/2-1/2"]
[Annotator "TA"]
[ECO "A45"]
[WhiteElo "2747"]
[BlackElo "2745"]
[PlyCount "123"]
[EventDate "2025.03.02"]
[EventType "swiss"]
[EventCountry "USA"]
[SourceTitle "playchess.com"]
[Source "ChessBase"]
[SourceQuality "1"]
[TimeControl "180+2"]

{[%evp 14,123,27,24,28,32,43,17,29,35,42,37,108,102,91,90,98,102,84,88,166,145,243,263,432,409,402,377,362,403,458,469,500,250,268,261,260,245,241,243,427,426,782,247,248,250,259,251,250,183,187,194,295,129,129,129,125,123,141,138,143,116,136,91,101,8,8,8,8,8,8,0,0,0,8,0,0,0,8,0,0,0,0,0,0,0,8,0,8,0,0,0,0,0,0,0,0,0,0,0,0,0,0,0,0,0,0,0,0,0,0,0]} 1. d4 {[%emt 0:00:01]} Nf6 {[%emt 0:00:02]} 2. Bg5 {[%emt 0:00:01]} Ne4 {[%emt 0:00:10]} 3. Bf4 {[%emt 0:00:01]} c5 {[%emt 0:00:06]} 4. f3 {[%emt 0:00:01]} Qa5+ {[%emt 0:00:04]} 5. c3 {[%emt 0:00:01]} Nf6 {[%emt 0:00:02]} 6. d5 {[%emt 0:00:01]} e6 {[%emt 0:00:05]} 7. e4 {[%emt 0:00:01]} exd5 {[%emt 0:00:02]} 8. exd5 {[%emt 0:00:02]} d6 {[%emt 0:00:03] A45: Trompowsky Attack.} 9. Qd2 {[%emt 0:00:02]} Be7 {[%emt 0:00:07]} 10. c4 {[%emt 0:00:01]} Qd8 {[%emt 0:00:23][%cal Ob7b5]} 11. Nc3 {[%emt 0:00:03]} O-O {[%emt 0:00:03]} 12. g4 $5 {[%emt 0:00:23][%mdl 4] Exploring less charted territory. Inhibits Nh5.} Nfd7 $146 {[%emt 0:00:27]} (12... Ne8 $14) (12... Re8 13. O-O-O a6 14. h4 b5 15. h5 b4 16. Nce2 Nfd7 17. Ng3 Ne5 18. Bxe5 dxe5 {½-½ Drnovsek,G (2371)-Fercec,N (2423) Nova Gorica op 25th 2020 (3)}) 13. O-O-O $16 {[%emt 0:00:06] White has more active pieces.} a6 {[%emt 0:00:03][%cal Ob7b5] [#]} 14. h4 $1 {[%emt 0:00:05]} b5 {[%emt 0:00:01] White has space advantage and is better} (14... f6 15. Bd3) 15. Qc2 {[%emt 0:00:26]} (15. cxb5 Nb6 $14) 15... Nb6 {[%emt 0:00:23]} 16. Bd3 $36 {[%emt 0:00:02][%mdl 2048] White has strong initiative.} (16. cxb5 axb5 17. Bxb5 Ba6 $11) 16... Kh8 {[%emt 0:00:25] [#]} (16... h6 $16) 17. Nh3 $1 $18 {[%emt 0:00:07]} (17. cxb5 c4 18. Bf1 (18. Bxh7 axb5 19. Nxb5 Rxa2 $15) 18... axb5 19. Nxb5 Rxa2 20. Bxc4 (20. Kb1 $2 Ra5 $19) 20... Ra1+ 21. Kd2 Nxc4+ 22. Qxc4 Qa5+ 23. Nc3 Ba6 24. Rxa1 Qxa1 $17) 17... Nxc4 {[%emt 0:00:09] [#]} (17... N8d7 $16) 18. Ng5 $1 {[%emt 0:00:18]} (18. Bxh7 $6 Nd7 $16) 18... g6 $2 {[%emt 0:00:11] [#]} (18... f5 {keeps fighting.} 19. gxf5 (19. Bxf5 Bxf5 20. gxf5 Nd7 $16) 19... Nxb2) 19. Nxh7 $1 {[%emt 0:00:13]} Kxh7 {[%emt 0:00:01]} 20. h5 Kg7 {[%emt 0:00:29]} 21. hxg6 {[%emt 0:00:28] White threatens Rh7+ and mate.} Rh8 {[%emt 0:00:01]} 22. gxf7 {[%emt 0:00:02]} Ne5 {[%emt 0:00:04]} 23. Kb1 {[%emt 0:00:33]} Nbd7 {[%emt 0:00:17]} 24. Bf5 {[%emt 0:00:03]} Nxf7 {[%emt 0:00:04]} 25. Be6 {[%emt 0:00:07]} Nde5 {[%emt 0:00:03]} 26. Qf5 {[%emt 0:00:00]} (26. Ne4 a5 27. Ng3 Bh4 $11) 26... Bxe6 $2 {[%emt 0:00:05]} (26... Qf8 27. Ne4 Bxe6 28. dxe6 Nxf3) 27. dxe6 {[%emt 0:00:01]} Qg8 {[%emt 0:00:02]} (27... Qf8 $142 28. Nd5 (28. exf7 Qxf7 29. Bxe5+ dxe5 $18) 28... Nxf3 29. Rxh8 (29. exf7 Qxf7 30. Qe4 Rxh1 $18) 29... Nxh8) 28. exf7 $2 {[%emt 0:00:04]} (28. Nd5 Ng6 29. Rxh8 (29. exf7 Qxf7 $18) (29. Qxg6+ Kxg6 30. Nxe7+ Kg7 $18) 29... Nfxh8 30. Bxd6) 28... Qxf7 {[%emt 0:00:01]} 29. Bxe5+ dxe5 {[%emt 0:00:00] Black is weak on the light squares} 30. Qxe5+ Qf6 {[%emt 0:00:01]} 31. Qe2 {[%emt 0:00:32]} Rxh1 {[%emt 0:00:06]} 32. Rxh1 {[%emt 0:00:01][%cal Of3f4] f4! is the strong threat.} Rd8 {[%emt 0:00:02]} (32... Rh8 $142 33. Rf1 Qg6+ 34. Ka1 Bf6) 33. Rd1 {[%emt 0:00:06]} (33. f4 $18 {is more deadly.}) 33... Rxd1+ {[%emt 0:00:02]} 34. Qxd1 $16 {[%emt 0:00:01][%mdl 4096] Endgame KQB-KQN. White is a pawn up.} c4 {[%emt 0:00:01]} 35. Nd5 {[%emt 0:00:02]} Qg6+ {[%emt 0:00:01]} 36. Qc2 {[%emt 0:00:02]} Bd6 {[%emt 0:00:03]} 37. Qxg6+ {[%emt 0:00:02]} Kxg6 {[%emt 0:00:01] KB-KN. White is a pawn up.} 38. f4 {[%emt 0:00:01]} b4 {[%emt 0:00:05]} 39. b3 {[%emt 0:00:03]} (39. Nb6 $16 Bxf4 40. Nxc4) 39... c3 $1 $11 {[%emt 0:00:01] The position is equal.} 40. Kc2 {[%emt 0:00:01]} a5 {[%emt 0:00:00]} 41. Kd3 {[%emt 0:00:01]} Bc5 {[%emt 0:00:02]} 42. Nc7 {[%emt 0:00:06]} Bd6 {[%emt 0:00:00]} 43. Nd5 {[%emt 0:00:07]} Bc5 {[%emt 0:00:01]} 44. a4 {[%emt 0:00:04]} bxa3 {[%emt 0:00:03] Strongly threatening ...a2.} 45. Nxc3 {[%emt 0:00:02]} (45. Kxc3 $2 {is the wrong capture.} Bd4+ 46. Kxd4 a2 $19) 45... Bd6 {[%emt 0:00:01]} 46. Ke4 {[%emt 0:00:02]} Bb4 {[%emt 0:00:01]} 47. Na2 {[%emt 0:00:04]} Bd6 {[%emt 0:00:02]} 48. Nc3 {[%emt 0:00:04]} Bb4 {[%emt 0:00:00]} 49. Kd3 {[%emt 0:00:01]} Bd6 {[%emt 0:00:02]} 50. Ke3 {[%emt 0:00:01]} Bc5+ {[%emt 0:00:03]} 51. Kf3 {[%emt 0:00:02]} Bb4 {[%emt 0:00:03]} 52. Na2 {[%emt 0:00:01]} Bc5 {[%emt 0:00:00]} 53. Ke4 {[%emt 0:00:04]} Bd6 {[%emt 0:00:02]} 54. f5+ {[%emt 0:00:01]} Kg5 {[%emt 0:00:00]} 55. Kd5 {[%emt 0:00:01]} Be7 {[%emt 0:00:05]} 56. Ke6 {[%emt 0:00:06]} Bf6 {[%emt 0:00:01]} 57. b4 {[%emt 0:00:01]} axb4 {[%emt 0:00:02]} 58. Nxb4 {[%emt 0:00:01]} Bc3 {[%emt 0:00:02]} 59. Na2 {[%emt 0:00:01]} Bb2 {[%emt 0:00:01]} 60. Kd5 {[%emt 0:00:02]} Kxg4 {[%emt 0:00:01]} 61. f6 {[%emt 0:00:01]} Bxf6 {[%emt 0:00:02]} 62. Kc4 {[%emt 0:00:01] White really could win this.   Weighted Error Value: White=0.24 (precise) /Black=0.36  Missed win:     	White=1     	---        Mistake:       	White=2     	Black=7      Inaccurate:     	White=3     	---        OK:         	White=19    	Black=26     Best:        	White=2     	Black=1      Strong:       	White=2     	Black=1} 1/2-1/2

[Event "Champions Showdown Kings 2025"]
[Site "Saint Louis"]
[Date "2025.03.04"]
[Round "1.1"]
[White "Dominguez Perez, Leinier"]
[Black "Robson, Ray"]
[Result "1-0"]
[Annotator "TA"]
[ECO "B90"]
[WhiteElo "2741"]
[BlackElo "2689"]
[PlyCount "135"]
[EventDate "2025.03.02"]
[EventType "swiss"]
[EventCountry "USA"]
[SourceTitle "playchess.com"]
[Source "ChessBase"]
[SourceQuality "1"]
[TimeControl "180+2"]

{[%evp 18,135,16,7,18,0,24,30,33,27,31,15,41,33,25,34,69,20,55,46,48,51,55,40,47,45,116,106,205,196,217,213,208,215,221,205,227,198,332,325,329,338,380,367,460,444,458,470,468,470,454,470,470,470,470,470,488,483,463,460,581,577,586,580,551,0,545,518,594,592,641,635,677,668,677,662,707,683,677,666,841,833,858,841,1012,1016,1383,1145,1225,747,913,914,884,856,1038,1183,1555,1283,1314,1312,1409,1218,1204,5177,5102,2478,1886,1773,29965,12722,29980,29981,29990,29991,29991,29987,29987,29988,29988,29986]} 1. e4 {[%emt 0:00:02]} c5 {[%emt 0:00:01]} 2. Nf3 {[%emt 0:00:01]} d6 {[%emt 0:00:01]} 3. d4 {[%emt 0:00:01]} cxd4 {[%emt 0:00:02]} 4. Nxd4 {[%emt 0:00:02]} Nf6 {[%emt 0:00:01]} 5. Nc3 {[%emt 0:00:01]} a6 {[%emt 0:00:02]} 6. Be3 {[%emt 0:00:01]} e5 {[%emt 0:00:02]} 7. Nf3 {[%emt 0:00:04]} Be7 {[%emt 0:00:04]} 8. Bc4 {[%emt 0:00:01]} Be6 {[%emt 0:00:07]} 9. Bb3 {[%emt 0:00:02]} O-O {[%emt 0:00:25]} 10. O-O {[%emt 0:00:03]} b5 {[%emt 0:00:14] 10...Qc8 is becoming the main line. B90: Sicilian Najdorf: Unusual White 6th moves, 6 Be3 Ng4 and 6 Be3 e5.} 11. a4 {[%emt 0:00:08] [#]} Bxb3 {[%emt 0:00:20]} 12. cxb3 {[%emt 0:00:02]} Nbd7 {[%emt 0:00:06] White has an edge.} 13. b4 {[%emt 0:00:28]} bxa4 $146 {[%emt 0:00:46]} (13... h6 14. Qd3 bxa4 15. Rxa4 Qb8 16. Rfa1 Qb7 17. h3 Rfb8 18. b5 axb5 19. Rxa8 Rxa8 20. Rxa8+ Qxa8 21. Qxb5 {½-½ Korneev,O (2459)-Galego,L (2458) POR-chT Soure 2024 (6.18)}) 14. Rxa4 {[%emt 0:00:06]} Qc7 {[%emt 0:00:22]} 15. Qd3 {[%emt 0:00:19]} Qb7 {[%emt 0:00:03]} 16. Rfa1 {[%emt 0:00:17][%cal Of3e1]} Rfd8 {[%emt 0:00:15][%cal Od6d5]} 17. h3 {[%emt 0:00:23] White is more active.} (17. Rxa6 d5 18. Qb5 (18. exd5 e4 $17) (18. Nxd5 Nxd5 19. Rxa8 Rxa8 $17) 18... Qxb5 19. Nxb5 Rxa6 20. Rxa6 dxe4 $17 (20... Nxe4 21. Na7 $17)) (17. Nd2 $14) 17... Bf8 {[%emt 0:00:09]} 18. Nd2 {[%emt 0:00:27][%cal Bf3d2,Bd2c4,Bc4e5,Be5c6][%mdl 32]} d5 {[%emt 0:00:15] Dodges Nc4} 19. Nxd5 {[%emt 0:00:03]} Nxd5 {[%emt 0:00:03]} 20. Qxd5 {[%emt 0:00:03]} Qxd5 {[%emt 0:00:03]} 21. exd5 {[%emt 0:00:01][%cal Ob4b5]} Rab8 {[%emt 0:00:05] Black is on the road to losing.} ({Black should play} 21... Rac8 $14) 22. Nc4 $16 {[%emt 0:00:10]} Nf6 {[%emt 0:00:05]} (22... f6 $16 23. d6 (23. Rxa6 Rxb4 24. Rc1 Nc5 $16) 23... Rdc8) 23. Nxe5 $18 {[%emt 0:00:04] Nc6 would now be deadly.} ({Weaker is} 23. Rxa6 Nxd5 24. Nxe5 Nxe3 25. fxe3 Rbc8 $14) 23... Rxd5 {[%emt 0:00:06]} 24. Nc6 {[%emt 0:00:01]} Rc8 {[%emt 0:00:05]} 25. Rxa6 {[%emt 0:00:01][%cal Ob4b5]} h6 {[%emt 0:00:04]} 26. Rc1 {[%emt 0:00:13]} Re8 {[%emt 0:00:03] Dodges Ne7+} 27. Bd4 {[%emt 0:00:24]} Nd7 {[%emt 0:00:02]} (27... Re6 $142) 28. Ra5 {[%emt 0:00:04]} Rd6 {[%emt 0:00:01]} 29. b5 {[%emt 0:00:02][%cal Bb4b5,Bb5b6][%mdl 32]} Re4 {[%emt 0:00:03]} 30. Be3 {[%emt 0:00:10]} Rd5 {[%emt 0:00:02]} 31. b6 {[%emt 0:00:05]} Rxa5 32. Nxa5 {[%emt 0:00:01]} Rxe3 {[%emt 0:00:06]} 33. fxe3 {[%emt 0:00:02]} Nxb6 {[%emt 0:00:00][%mdl 4096] Endgame KRN-KBN} 34. Nc4 {[%emt 0:00:09]} Nd5 {[%emt 0:00:03]} 35. Rd1 {[%emt 0:00:03]} Nb4 {[%emt 0:00:02]} 36. Rd7 {[%emt 0:00:02]} (36. Rd8 f6 37. b3 g6 $18) 36... Nc6 {[%emt 0:00:03]} 37. Rc7 {[%emt 0:00:04]} Nb4 {[%emt 0:00:02]} 38. e4 {[%emt 0:00:01]} g6 {[%emt 0:00:02]} 39. Kf2 {[%emt 0:00:04]} Nd3+ {[%emt 0:00:02]} 40. Ke3 {[%emt 0:00:02]} Ne1 {[%emt 0:00:01]} 41. Kf2 {[%emt 0:00:01]} Nd3+ {[%emt 0:00:01]} 42. Kf3 {[%emt 0:00:01]} Ne1+ {[%emt 0:00:01]} 43. Kg3 {[%emt 0:00:01]} h5 {[%emt 0:00:03]} 44. e5 {[%emt 0:00:01]} Nd3 {[%emt 0:00:02]} 45. Rd7 {[%emt 0:00:04]} Nc5 {[%emt 0:00:01]} 46. Rd8 {[%emt 0:00:01]} Kg7 {[%emt 0:00:02]} 47. Kf3 {[%emt 0:00:02]} Ne6 {[%emt 0:00:02]} 48. Rd7 {[%emt 0:00:01]} Nc5 {[%emt 0:00:01]} 49. Ra7 {[%emt 0:00:01]} Ne6 {[%emt 0:00:06]} 50. Nd6 {[%emt 0:00:03]} Nd8 {[%emt 0:00:02]} 51. Rd7 {[%emt 0:00:02]} Nc6 {[%emt 0:00:01]} 52. Nxf7 {[%emt 0:00:04]} Be7 {[%emt 0:00:01] [#] Dodges Nd8} 53. Rxe7 $1 {[%emt 0:00:04]} Nxe7 {[%emt 0:00:01] KN-KN. White is two pawns up.} 54. Nd6 {[%emt 0:00:00]} Nc6 {[%emt 0:00:04]} 55. Ke4 {[%emt 0:00:01]} h4 {[%emt 0:00:03]} 56. Nb5 {[%emt 0:00:04]} Kf7 {[%emt 0:00:02]} 57. Nd4 {[%emt 0:00:01]} Nb4 {[%emt 0:00:01]} 58. Nf3 {[%emt 0:00:01]} Na6 {[%emt 0:00:03]} 59. Nxh4 {[%emt 0:00:03]} Nc5+ {[%emt 0:00:00]} 60. Kd5 {[%emt 0:00:01]} Nd3 {[%emt 0:00:02]} 61. b3 {[%emt 0:00:01]} g5 {[%emt 0:00:03]} 62. Nf3 {[%emt 0:00:01]} Kg6 {[%emt 0:00:02]} 63. Kd6 {[%emt 0:00:03]} (63. e6 $142 Nf4+ 64. Kd6 Nh5 65. b4 Ng7 66. b5 Ne8+ 67. Kc6 Ng7 68. e7) 63... Nf4 {[%emt 0:00:02]} 64. e6 {[%emt 0:00:02][%cal Be5e6,Be6e7][%mdl 32] White mates.} Kf6 {[%emt 0:00:03]} 65. e7 {[%emt 0:00:01]} Kf7 {[%emt 0:00:01]} 66. Nxg5+ {[%emt 0:00:01]} Ke8 {[%emt 0:00:00]} 67. Ne4 {[%emt 0:00:03]} Nh5 {[%emt 0:00:03]} 68. g4 {[%emt 0:00:01] Weighted Error Value: White=0.18 (very precise) /Black=0.25 (precise)   Mistake:       	White=1     	Black=3      Inaccurate:     	---       	Black=3      OK:         	White=23    	Black=13} 1-0